Cogmind - Beta 14 @@@ ROGUE MODE // 2025.01.17 @ 20:10:30 Player: Flaborized Result: Destroyed by as-42572 with Assembled Blade Performance ------------- Evolutions (0) 0 Regions Visited (2) 400 Robots Destroyed (9) 45 Value Destroyed (169) 169 Prototype IDs (1) 20 Alien Tech Used (0) 0 Bonus (25) 25 TOTAL SCORE: 659 Bonus ------- Follower Combat Kills 25 Cogmind --------- Core Integrity 0/250 Matter 286/300 Energy 160/160 System Corruption 0% Temperature Cool (0) Movement Rolling (95) Ox1 Location -10/Mines Parts ------- > --- POWER (1) -------- Light Nuclear Core > --- PROPULSION (2) --- Wheel > --- UTILITY (2) ------ Small Storage Unit > --- WEAPON (2) ------- Improved Assault Rifle > --- INVENTORY (8) ---- Ion Engine Light Nuclear Core Wheel Improved Heat Sink Medium Matter Pod (100) Improved Terrain Scanner Grenade Launcher Rocket Launcher Peak State ------------ > --- POWER ------------ Light Nuclear Core > --- PROPULSION ------- Light Treads Compact Wheel > --- UTILITY ---------- Small Storage Unit Medium Armor Plating > --- WEAPON ----------- Improved Assault Rifle Improved Assault Rifle > --- INVENTORY -------- Ion Engine Light Treads Wheel Medium Armor Plating Improved Assault Rifle Improved Assault Rifle Grenade Launcher Heavy Hammer [Rating: 15] Favorites ----------- Power Ion Engine Engine Ion Engine Power Core Light Nuclear Core Propulsion Light Treads Treads Light Treads Wheel Compact Wheel Utility Small Storage Unit Storage Small Storage Unit Protection Medium Armor Plating Weapon Improved Assault Rifle Ballistic Gun Improved Assault Rifle Launcher Rocket Launcher Build | -11 -10 -10 ------- Run | Yrd Mat Min Slots Evolved . | . . . Power . | . . . Propulsion . | . . . Utility . | . . . Weapon . | . . . Parts Attached 24 | 6 5 13 Power 7 | 1 2 4 Engine 4 | 1 2 1 Core 3 | . . 3 Reactor . | . . . Propulsion 6 | 2 . 4 Treads 2 | 1 . 1 Leg . | . . . Wheel 4 | 1 . 3 Hover . | . . . Flight . | . . . Utility 3 | 1 1 1 Device . | . . . Storage 1 | 1 . . Processor . | . . . Hackware . | . . . Protection 2 | . 1 1 Artifact . | . . . Weapon 8 | 2 2 4 Energy Gun . | . . . Energy Cannon . | . . . Ballistic Gun 7 | 2 2 3 Ballistic Cannon . | . . . Launcher 1 | . . 1 Special Weapon . | . . . Impact Weapon . | . . . Slashing Weapon . | . . . Piercing Weapon . | . . . Special Melee Weapon . | . . . Unidentified Prototypes 1 | . 1 . Parts Lost 8 | . . 8 Power 1 | . . 1 Propulsion 3 | . . 3 Utility 2 | . . 2 Weapon 2 | . . 2 Highest Loss Streak 6 | . . 6 To Critical Strikes . | . . . Average Slot Usage (%) 95 | . 98 94 Engine 9 | . 14 7 Core 4 | . . 5 Treads 13 | . 14 13 Wheel 13 | . 14 13 Storage 14 | . 14 14 Protection 11 | . 13 11 Ballistic Gun 27 | . 27 27 Peak Build Rating 15 | 6 13 15 Average Rating 12 | 4 12 12 On Entrance 6 | . 6 13 Naked Turns . | . . . Heaviest Build 24 | 11 23 24 Greatest Support 20 | 20 16 16 Greatest Overweight (x) 2 | . 1 2 Average Overweight (x) 1 | . . 1 Largest Inventory Capacity 8 | 8 8 8 Average Capacity 7 | 6 8 8 Most Carried 8 | 4 8 8 Average Carried 6 | 2 7 6 Final Capacity 8 | 8 8 8 Final Carried 8 | 4 8 8 Class Distribution -------------------- 100% | Mutant Dominant Class ---------------- Mutant | -10/Materials Mutant | -10/Mines Resources | -11 -10 -10 ----------- Run | Yrd Mat Min Matter Collected 902 | 170 172 560 Remotely . | . . . Salvage Created 496 | . 172 324 Parts 24 | . 9 15 Haulers Intercepted . | . . . Recyclers Shooed . | . . . Parts Field Recycled . | . . . Retrieved Matter . | . . . Parts Self-Destructed . | . . . Prevented . | . . . Kills | -11 -10 -10 ------- Run | Yrd Mat Min Combat Hostiles Destroyed 20 | . 2 18 Guns 17 | . 2 15 AOE 3 | . . 3 Classes Destroyed 6 | . 2 4 Worker 1 | . . 1 Tunneler 1 | . . 1 Recycler 1 | . 1 . Swarmer 3 | . . 3 Grunt 3 | . 2 1 Assembled 14 | . . 14 Best Kill Streak 3 | . 2 3 Combat Bots Only 3 | . 2 3 Max Kills in Single Turn 2 | . 1 2 Gunslinging . | . . . Exploded 2 | . . 2 Melee . | . . . Uniques/NPCs Destroyed . | . . . Combat | -11 -10 -10 -------- Run | Yrd Mat Min Hostile Shots Fired 91 | . 2 89 Missed 22 | . 1 21 Damage Taken 1497 | . 10 1487 Core 278 | . . 278 Absorbed by Shields . | . . . Core Remaining (%) 100 | 100 . . Volleys Fired 73 | . 11 62 Largest 2 | . 2 2 Hottest 46 | . 46 46 Shots Fired 131 | . 22 109 Gun 128 | . 22 106 Cannon . | . . . Launcher 3 | . . 3 Special . | . . . Kinetic 128 | . 22 106 Thermal . | . . . Explosive 3 | . . 3 Electromagnetic . | . . . Robot Hit Streak 11 | . 6 11 Robot Miss Streak 6 | . 5 6 Penetration Max . | . . . Secondary Targets 1 | . . 1 Max Gunslinging Chain 1 | . . 1 Shots Hit Robots 84 | . 13 71 Core Hits 40 | . 5 35 Critical Kills . | . . . Critical Parts Destroyed 1 | . . 1 Critical Strikes 1 | . . 1 Destroy 1 | . . 1 Melee Attacks . | . . . Impact . | . . . Slashing . | . . . Piercing . | . . . Sneak Attacks . | . . . Combat Hostiles . | . . . Follow-up Attacks . | . . . Damage Inflicted 1460 | . 199 1261 Guns 1262 | . 199 1063 Cannons . | . . . Explosions 198 | . . 198 Melee . | . . . Ramming . | . . . Kinetic 1262 | . 199 1063 Thermal . | . . . Explosive 198 | . . 198 Electromagnetic . | . . . Impact . | . . . Slashing . | . . . Piercing . | . . . Highest Corruption . | . . . Average Corruption . | . . . Corruption Purged . | . . . Corruption Blocked . | . . . Overload Shots . | . . . Overflow Damage . | . . . Projectiles . | . . . Explosions . | . . . Melee . | . . . Knockbacks . | . . . Impact . | . . . Kinetic . | . . . Secondary . | . . . Self-Inflicted Damage . | . . . Shots . | . . . Rammed . | . . . Targets Rammed . | . . . Kicked . | . . . Crushed . | . . . Highest Temperature 46 | . 4 46 Average Temperature 23 | . 3 23 Received Heat Transfer 189 | . 6 183 Siege Activations . | . . . Robots Corrupted . | . . . Combat Hostiles . | . . . Parts Fried . | . . . Impact Corruptions . | . . . Robots Melted . | . . . Combat Hostiles . | . . . Parts Melted . | . . . Heat Transferred . | . . . Parts Sabotaged . | . . . Parts Stolen . | . . . Parts Stripped . | . . . Power Chain Reactions . | . . . Alert | -11 -10 -10 ------- Run | Yrd Mat Min Peak Influence 147 | . 106 147 Initial 40 | . . 40 Average 38 | . 31 43 Maximum Alert Level . | . . . Low Security (%) 100 | 100 100 100 Level 1 . | . . . Level 2 . | . . . Level 3 . | . . . Level 4 . | . . . Level 5 . | . . . High Security . | . . . Max Security . | . . . Squads Dispatched 1 | . 1 . Investigation . | . . . Extermination . | . . . Reinforcement 1 | . 1 . Assault . | . . . Garrison . | . . . Intercept . | . . . Searches Triggered . | . . . Construction Impeded . | . . . Haulers Reinforced . | . . . Active Scanning Responses . | . . . Cargo Convoy Interrupts . | . . . Stealth | -11 -10 -10 --------- Run | Yrd Mat Min Distress Signals . | . . . Communications Jammed . | . . . Distress Signals . | . . . Times Spotted 31 | . 6 25 Peak Tracking Total 4 | . 3 4 Tactical Retreats 3 | . . 3 Traps | -11 -10 -10 ------- Run | Yrd Mat Min Traps Triggered . | . . . Indirectly . | . . . Trap Hack Attempts . | . . . Triggered . | . . . Disarmed . | . . . Reprogrammed . | . . . Reused . | . . . Traps Extracted . | . . . Installed . | . . . Triggered . | . . . Machines | -11 -10 -10 ---------- Run | Yrd Mat Min Machines Disabled 1 | . 1 . Max in Single Turn 1 | . 1 . Machines Repaired . | . . . Machines Dismantled . | . . . Machines Sabotaged . | . . . Overloaded Fab Kills . | . . . Hacking | -11 -10 -10 --------- Run | Yrd Mat Min Machines Accessed 3 | . 3 . Terminals 3 | . 3 . Fabricators . | . . . Repair Stations . | . . . Recycling Units . | . . . Scanalyzers . | . . . Garrison Access . | . . . Total Hacks 9 | . 9 . Successful 4 | . 4 . Failed 5 | . 5 . Catastrophic 2 | . 2 . Database Lockouts . | . . . Manual 6 | . 6 . Terminals 9 | . 9 . Fabricators . | . . . Repair Stations . | . . . Recycling Units . | . . . Scanalyzers . | . . . Garrison Access . | . . . Terminal Hacks 2 | . 2 . Terminal Index 1 | . 1 . Zone Layout 1 | . 1 . Fabricator Hacks . | . . . Repair Station Hacks . | . . . Recycling Unit Hacks . | . . . Scanalyzer . | . . . Garrison Access Hacks . | . . . Unauthorized Hacks 2 | . 2 . Terminals 2 | . 2 . Track 1 | . 1 . Botnet 1 | . 1 . Fabricators . | . . . Repair Stations . | . . . Recycling Units . | . . . Scanalyzers . | . . . Garrison Access . | . . . Data Cores Recovered . | . . . Used . | . . . Hacking Detections 3 | . 3 . Full Trace Events . | . . . Feedback Events . | . . . Feedback Blocked . | . . . Robot Schematics Acquired . | . . . Robots Built . | . . . Authchips . | . . . Time . | . . . Total Robot Build Rating . | . . . Part Schematics Acquired . | . . . Parts Built . | . . . Authchips . | . . . Time . | . . . Total Part Build Rating . | . . . Parts Repaired . | . . . Time . | . . . Parts Recycled . | . . . Recycled Matter . | . . . Retrieved Matter . | . . . Retrieved Components . | . . . Parts Scanalyzed . | . . . Part Schematics Acquired . | . . . Parts Damaged . | . . . Bothacking | -11 -10 -10 ------------ Run | Yrd Mat Min Used RIF Installer . | . . . Robots Hacked . | . . . Non-combat . | . . . Combat . | . . . Robot Hacks Applied . | . . . Relay Couplers Released . | . . . Fabnet Peak Effective % . | . . . Robots Rewired . | . . . Allies Hacked . | . . . Hacks Repelled . | . . . Allies | -11 -10 -10 -------- Run | Yrd Mat Min Total Allies 3 | . . 3 Largest Group 3 | . . 3 Highest-Rated Group 40 | . . 40 Highest-Rated Ally 16 | . . 16 Total Orders . | . . . Ally Attacks 14 | . . 14 Total Damage 140 | . . 140 Kills 2 | . . 2 Allies Corrupted . | . . . Allies Melted . | . . . Intel | -11 -10 -10 ------- Run | Yrd Mat Min Robot Analysis Total . | . . . Derelict Logs Recovered . | . . . Drone Launches . | . . . Drone Recoveries . | . . . Exploration | -11 -10 -10 ------------- Run | Yrd Mat Min Turns Passed 1188 | 54 278 856 Spaces Moved 687 | 42 159 486 Core 8 | 2 . 6 Treads 1 | 1 . . Legs . | . . . Wheels 678 | 39 159 480 Hover . | . . . Flight . | . . . Fastest Speed 50 | 50 100 95 Average Speed 110 | 99 113 109 Slowest Speed 160 | 160 115 150 Overloaded Moves . | . . . Propulsion Burnouts . | . . . Robots Hopped . | . . . Cave-ins Triggered . | . . . Exploration Rate (%) 43 | 3 39 87 Regions Visited 2 Branch Regions 1 Pre-discovered Areas 1 | . . 1 Known Exits Taken . | . . . Unknown Exits Taken 2 | 1 1 . Scrap Searched 2 | . . 2 Spaces Dug . | . . . Terrain Destroyed 32 | . . 32 Melee . | . . . Projectile . | . . . AOE 32 | . . 32 Terrain Rammed . | . . . Walls Destroyed . | . . . Machines Disabled . | . . . Actions | -11 -10 -10 --------- Run | Yrd Mat Min Total 989 | 51 235 703 Wait 174 | . 49 125 Move 685 | 41 158 486 Hop . | . . . Pick Up 19 | 4 6 9 Fast Attach 9 | 6 2 1 Attach 6 | . . 6 Detach . | . . . Swap 9 | . 3 6 Drop 14 | . 6 8 Fire 73 | . 11 62 Melee . | . . . Ram . | . . . Kick . | . . . Crush . | . . . Escape Stasis . | . . . Rewire . | . . . Trap . | . . . Miscellaneous . | . . . Route ------- -11/Scrapyard -10/Materials (discovered 2 exits: [*Mat] / [*Min]) -10/Mines (discovered 2 exits: [*Mat x2]) History --------- Turn | Location | Event 7 | -11/Scrapyard | Discovered new exit (range 16) 55 | -11/Scrapyard | Entered Materials 182 | -10/Materials | Discovered new exit (range 15) 320 | -10/Materials | Discovered new exit (range 6) 325 | -10/Materials | Build established: Mutant 333 | -10/Materials | Entered Mines 337 | -10/Mines | Assisted by bots powering up and referring to "LRC-V3" 354 | -10/Mines | Discovered new exit (range 12) 443 | -10/Mines | Lost 3 allies 533 | -10/Mines | Received a Rocket Launcher from a helpful Derelict 564 | -10/Mines | Assembled infested the area 581 | -10/Mines | Discovered new exit (range 12) 582 | -10/Mines | Learned location of Storage (-7) 588 | -10/Mines | Core integrity fell below 50% 622 | -10/Mines | Lost 6 parts (1p2n1u2w) 908 | -10/Mines | Core integrity fell below 20% 1189 | -10/Mines | Destroyed by as-42572 with Assembled Blade Last Messages --------------- 01003_ Found Wheel. 01003_ Found 50 Matter. 01004_ Acquired 4 matter. 01023_ Dropped Lgt. Ion Engine. 01024_ Acquired 10 matter. 01038_ Med. Armor Plating destroyed. 01040_ as-14722 suffers critical hit (Destroy). 01040_ Destroyed Asb. Rifle. 01043_ as-14722 destroyed. 01049_ Acquired 12 matter. 01161_ Dropped Com. Wheel. 01163_ Acquired 10 matter. 01171_ as-76647 destroyed. 01176_ Imp. Assault Rifle severed. 01177_ Destroyed Asb. Hover Unit. 01181_ Lgt. Treads destroyed. 01181_ as-18066 destroyed. 01185_ Knocked back. 01186_ Acquired 17 matter. 01188_ as-44034 destroyed. Map ----- +----------------------------------------------------+ | % [%= #????## ##???# *""" """ ??? | | ### !!*** #?????####?????#|%#### %""" """ #?? | | #######*%=#??????????????## #??# [% #?? | | ##????##!!#######?????????# #??### #########??? | | #?????# %= %! #?????????# ###??# #??????????? | | #????# ! * #?????????# ## ?? #??????????? | | ##??# ==##### #?????????# ## #####??????????? | | #???# =%|#???# #?????????#%## #?####?????????? | | ##???# ! #???# #?????????#=## ### ##????????? | | ?????## #???# #?????????#*## ## #????????? | | ??????# #???#[########??# ## ## #?????????? | | ?????? ##???#=%%* ** #??# ## ## #??????????? | | ?????### #?????# !== %#### ## # #??????????? | | ???????##??????#######!== #??????????? | | ?????????????????????# = ##??????????? | | ?????????????????????######### ##???????????? | | ?????????????????????????????# ##???????????? | | ????????????????????????????## #???????????? | | ???????????????????????????## % #???????????? | | ?????????????????????####### ##???????????? | | ?????????????????????# != % !% #????????????? | | ?????????????????????# =%| #????????????? | | ?????????????????????# ### #????????????? | | ??????????###????????#* #?## #????????????? | | ?????????? #????????#%=####! #????????????? | | ??????????# #????????#==%@a=! ##????????????? | | ??????????# #??####??# =####[ ##?????????????? | | ??????????# #?## ##?#!=#??## ##??????????????? | | #?????????# ### ###% #???####???????????????? | | ##????????# ## %= ##?????????????????????? | | ######???# %< ###########???????????? | | ## ##??# ### ##=% #???????????? | | #### ##### ### ######## #???????????? | | [% * %% #?## ##??????# #???#####???? | | * % #??#####???????# #???# #???? | | ### ########??????????????# ##### ##??? | | ??###### ##?????????????????????# ## ##?? | | ???????# #?????????????????????#### ## #?? | | ???????#####????????????????????????# #?? | | ????????????????????????????????????#### #?? | | ???????????????????????????????????????## #?? | | ????????????????????????????????????????## ##?? | | ?????????????????????????????????????????####??? | | ???????????????????????????????????????????????? | | ???????????????????????????????????????????????? | | ???????????????????????????????????????????????? | | | | | | | | | +----------------------------------------------------+ Best States ------------- Heat Dissipation 25 Energy Generation 14 Energy Capacity 250 Matter Stores 300 Matter Capacity 300 Sight Range 16 Terrain Scan Density 10 Armor Coverage 225 Evasion (%) 40 Item Schematics ----------------- None Robot Schematics ------------------ None Fabricated ------------ Nothing Alien Tech Used ----------------- None Achievements -------------- None Challenges ------------ None Game ------ Seed CompanionReactiveTreads Manual? 0 Play Time 00:17:50 Cumulative 62.5 hours Start 2025.01.17 @ 19:59:32 End 2025.01.17 @ 20:10:30 Sessions 1 Manual Loads 0 Difficulty Rogue Special Mode None Game No. 118 Rogue 118 Adventurer 0 Explorer 0 Win Type - Total 1 Types 1/0/0/0/0/0/0/0/0 Lore% 27 Gallery% 49 Achievement% 40 Wizard Run 0 Options --------- Layout 0 ASCII 0 Keyboard 0 Movement Numpad Keybinds 0 Fullscreen 1 Font 18/SmallcapsGlow Map View 76x50 Zoom Use 0% Tactical HUD 1 Map Filters NONE Filters NONE Steam 1 RUN: 1531829e-8bbc-4a16-a827-8eacf7e67ed7